[Event "Dvaro taure"]
[Site "Taujenai, Lithuania"]
[Date "2021.11.28"]
[Round "6.9"]
[White "Andrusevics, Jegors"]
[Black "Aleknavicius, Andrius"]
[Result "0-1"]
[WhiteElo "1586"]
[BlackElo "1942"]
[PlyCount "68"]
[EventDate "2021.??.??"]
[TimeControl "10+5"]
[WhiteClock "0:00:30"]
[BlackClock "0:00:23"]

1. d4 {[%emt 0:00:02]} f5 {[%emt 0:00:02]} 2. c4 {[%emt 0:00:03]} Nf6 {[%emt 0:
00:01]} 3. Nc3 {[%emt 0:00:24]} d6 {[%emt 0:00:02]} 4. Bg5 {[%emt 0:00:07]}
Nbd7 {[%emt 0:00:18]} 5. Nf3 {[%emt 0:00:05]} g6 {[%emt 0:00:15]} 6. g3 {[%emt
0:00:17]} Bg7 {[%emt 0:00:07]} 7. Bg2 {[%emt 0:00:00]} O-O {[%emt 0:00:10]} 8.
O-O {[%emt 0:00:18]} h6 {[%emt 0:00:23]} 9. Bxf6 {[%emt 0:00:14]} Nxf6 {[%emt
0:00:03]} 10. h4 {[%emt 0:00:12]} Qe8 {[%emt 0:00:19]} 11. Rc1 {[%emt 0:00:23]}
e5 {[%emt 0:00:15]} 12. Nb5 {[%emt 0:00:26]} Qe7 {[%emt 0:00:15]} 13. c5 {
[%emt 0:00:13]} e4 {[%emt 0:02:01]} 14. cxd6 {[%emt 0:00:14]} cxd6 {[%emt 0:00:
02]} 15. Nd2 {[%emt 0:00:25]} Nd5 {[%emt 0:02:29]} 16. e3 {[%emt 0:00:12]} a6 {
[%emt 0:00:09]} 17. Nc3 {[%emt 0:02:05]} Be6 {[%emt 0:00:35]} 18. Nxd5 {[%emt
0:00:13]} Bxd5 {[%emt 0:00:01]} 19. Re1 {[%emt 0:00:30]} Rfc8 {[%emt 0:00:30]}
20. Bf1 {[%emt 0:00:07]} b5 {[%emt 0:00:13]} 21. a4 {[%emt 0:01:02]} Qb7 {
[%emt 0:00:51]} 22. a5 {[%emt 0:00:40]} Rc7 {[%emt 0:00:21]} 23. Rxc7 {[%emt 0:
00:20]} Qxc7 {[%emt 0:00:00]} 24. g4 {[%emt 0:00:43]} Qd7 {[%emt 0:00:24]} 25.
Bh3 {[%emt 0:00:25]} Be6 {[%emt 0:00:45]} 26. gxf5 Bxf5 {[%emt 0:00:01]} 27.
Bxf5 {[%emt 0:00:30]} Qxf5 {[%emt 0:00:02]} 28. Kh2 {[%emt 0:00:40]} Qxf2+ {
[%emt 0:00:03]} 29. Kh3 {[%emt 0:00:09]} Bf6 {[%emt 0:00:41]} 30. Qg4 {[%emt 0:
00:17]} Qxe1 {[%emt 0:00:11]} 31. Qxg6+ {[%emt 0:00:02]} Bg7 {[%emt 0:00:01]}
32. Nxe4 {[%emt 0:00:18]} Qxe3+ {[%emt 0:00:38]} 33. Kg2 {[%emt 0:00:13]} Rf8 {
[%emt 0:00:20]} 34. Qe6+ {[%emt 0:00:11]} Kh8 {[%emt 0:00:03]} 0-1

[Event "Dvaro taure"]
[Site "Taujenai, Lithuania"]
[Date "2021.11.28"]
[Round "6.10"]
[White "Posaskov, Sergej"]
[Black "Povilaitis, Matas"]
[Result "0-1"]
[WhiteElo "1539"]
[BlackElo "1910"]
[PlyCount "98"]
[EventDate "2021.??.??"]
[TimeControl "10+5"]
[WhiteClock "0:01:28"]
[BlackClock "0:02:24"]

1. d4 {[%emt 0:00:01]} d5 {[%emt 0:00:00]} 2. c4 {[%emt 0:00:05]} c6 {[%emt 0:
00:00]} 3. Nc3 {[%emt 0:00:04]} Nf6 {[%emt 0:00:02]} 4. Bf4 {[%emt 0:00:05]} e6
{[%emt 0:00:06]} 5. Nf3 {[%emt 0:00:08]} Nbd7 {[%emt 0:00:05]} 6. e3 {[%emt 0:
00:50]} Be7 {[%emt 0:00:06]} 7. Be2 {[%emt 0:00:02]} dxc4 {[%emt 0:00:05]} 8.
Bxc4 {[%emt 0:00:06]} b5 {[%emt 0:00:02]} 9. Bb3 {[%emt 0:00:03]} a6 {[%emt 0:
00:03]} 10. O-O {[%emt 0:00:04]} Bb7 {[%emt 0:00:02]} 11. e4 {[%emt 0:00:27]}
Rc8 {[%emt 0:00:09]} 12. Re1 {[%emt 0:00:03]} O-O {[%emt 0:00:15]} 13. Rc1 {
[%emt 0:01:00]} Nb6 {[%emt 0:00:14]} 14. Qd3 {[%emt 0:00:30]} c5 {[%emt 0:00:
25]} 15. Bc2 {[%emt 0:00:28]} g6 {[%emt 0:01:06]} 16. Bh6 {[%emt 0:01:28]} Re8
{[%emt 0:00:03]} 17. Be3 {[%emt 0:00:01]} Nc4 {[%emt 0:01:20]} 18. b3 {[%emt 0:
00:21]} Nxe3 {[%emt 0:00:05]} 19. fxe3 {[%emt 0:00:05]} b4 {[%emt 0:01:40]} 20.
Na4 {[%emt 0:00:14]} Nxe4 {[%emt 0:00:10]} 21. Qf1 {[%emt 0:01:07]} cxd4 {
[%emt 0:00:29]} 22. Nxd4 {[%emt 0:00:10]} Bf6 {[%emt 0:00:19]} 23. Bxe4 {[%emt
0:00:09]} Rxc1 {[%emt 0:00:24]} 24. Rxc1 {[%emt 0:00:04]} Bxe4 {[%emt 0:00:07]}
25. Nc6 {[%emt 0:00:56]} Qd2 {[%emt 0:00:40]} 26. Re1 {[%emt 0:00:48]} Bxc6 {
[%emt 0:00:14]} 27. Re2 {[%emt 0:00:16]} Qd5 {[%emt 0:00:02]} 28. Qxf6 {[%emt
0:00:11]} Qd1+ {[%emt 0:00:12]} 29. Qf1 {[%emt 0:00:02]} Qxf1+ {[%emt 0:00:03]}
30. Kxf1 {[%emt 0:00:01]} Bb5 {[%emt 0:00:02]} 31. Nb2 {[%emt 0:00:11]} Bxe2+ {
[%emt 0:01:23]} 32. Kxe2 {[%emt 0:00:02]} Kf8 {[%emt 0:00:02]} 33. Nc4 {[%emt
0:00:03]} Rd8 {[%emt 0:00:03]} 34. h3 {[%emt 0:00:11]} Ke7 {[%emt 0:00:01]} 35.
Ne5 {[%emt 0:00:05]} Rc8 {[%emt 0:00:21]} 36. Kd2 {[%emt 0:00:27]} f6 {[%emt 0:
00:04]} 37. Nc4 {[%emt 0:00:05]} Rc5 {[%emt 0:00:07]} 38. e4 {[%emt 0:00:05]}
Kd7 {[%emt 0:00:17]} 39. Kd3 {[%emt 0:00:04]} Kc6 {[%emt 0:00:02]} 40. Kd4 {
[%emt 0:00:09]} Rg5 {[%emt 0:00:04]} 41. Ne3 {[%emt 0:00:03]} h5 {[%emt 0:00:
12]} 42. Kc4 {[%emt 0:00:31]} Ra5 {[%emt 0:00:05]} 43. g4 {[%emt 0:00:23]} Rxa2
{[%emt 0:00:04]} 44. Kxb4 {[%emt 0:00:04]} Rh2 {[%emt 0:00:04]} 45. gxh5 {
[%emt 0:00:14]} gxh5 {[%emt 0:00:01]} 46. Nc4 {[%emt 0:00:08]} Rxh3 {[%emt 0:
00:04]} 47. Na5+ {[%emt 0:00:08]} Kc7 {[%emt 0:00:01]} 48. Kc5 {[%emt 0:00:06]}
Re3 {[%emt 0:00:05]} 49. Kd4 {[%emt 0:00:04]} Re1 {[%emt 0:00:02]} 0-1

[Event "Dvaro taure"]
[Site "Taujenai, Lithuania"]
[Date "2021.11.28"]
[Round "6.11"]
[White "Griksaite, Egle"]
[Black "Maciuitis, Ignas"]
[Result "1-0"]
[WhiteElo "1508"]
[BlackElo "1862"]
[PlyCount "55"]
[EventDate "2021.??.??"]
[TimeControl "10+5"]
[WhiteClock "0:02:09"]
[BlackClock "0:01:55"]

1. d4 {[%emt 0:00:02]} f5 {[%emt 0:00:10]} 2. c3 {[%emt 0:00:08]} Nf6 {[%emt 0:
00:04]} 3. Bg5 {[%emt 0:00:03]} e6 {[%emt 0:00:02]} 4. e3 {[%emt 0:00:03]} d5 {
[%emt 0:00:02]} 5. Bd3 {[%emt 0:00:04]} Be7 {[%emt 0:00:01]} 6. Nd2 {[%emt 0:
00:04]} Ne4 {[%emt 0:00:03]} 7. Bxe7 {[%emt 0:00:20]} Qxe7 {[%emt 0:00:02]} 8.
Ngf3 {[%emt 0:00:15]} O-O {[%emt 0:00:06]} 9. Ne5 {[%emt 0:00:03]} Nd7 {[%emt
0:00:06]} 10. Ndf3 {[%emt 0:00:04]} Ng5 {[%emt 0:00:40]} 11. O-O {[%emt 0:00:
18]} Nxf3+ {[%emt 0:00:02]} 12. Nxf3 {[%emt 0:00:04]} f4 {[%emt 0:00:04]} 13.
Bc2 {[%emt 0:00:27]} Qf6 {[%emt 0:00:32]} 14. Qd3 {[%emt 0:00:34]} Qh6 {[%emt
0:00:03]} 15. e4 {[%emt 0:00:38]} dxe4 {[%emt 0:00:16]} 16. Qxe4 {[%emt 0:00:
07]} Nf6 {[%emt 0:00:02]} 17. Qd3 {[%emt 0:00:09]} b6 {[%emt 0:00:21]} 18. Rae1
{[%emt 0:00:14]} a5 {[%emt 0:00:21]} 19. Bb3 {[%emt 0:00:31]} Nd5 {[%emt 0:00:
25]} 20. Re5 {[%emt 0:01:05]} Bb7 {[%emt 0:01:14]} 21. Rfe1 {[%emt 0:00:46]}
Rf6 {[%emt 0:00:21]} 22. Ng5 {[%emt 0:01:35]} f3 {[%emt 0:00:42]} 23. Nxe6 {
[%emt 0:01:11]} fxg2 {[%emt 0:02:59]} 24. Nxc7 {[%emt 0:00:12]} Rd8 {[%emt 0:
00:41]} 25. Nxd5 {[%emt 0:00:24]} Bxd5 {[%emt 0:00:12]} 26. Bxd5+ {[%emt 0:00:
02]} Kf8 {[%emt 0:00:42]} 27. Qe4 {[%emt 0:00:35]} Rd7 {[%emt 0:00:26]} 28.
Re8# {[%emt 0:00:04]} 1-0

[Event "Dvaro taure"]
[Site "Taujenai, Lithuania"]
[Date "2021.11.28"]
[Round "6.12"]
[White "Spevak, Dovydas"]
[Black "Tilvikas, Justas"]
[Result "1/2-1/2"]
[WhiteElo "1523"]
[BlackElo "1849"]
[PlyCount "58"]
[EventDate "2021.??.??"]
[TimeControl "10+5"]
[WhiteClock "0:01:34"]
[BlackClock "0:00:41"]

1. f4 {[%emt 0:15:51]} c5 {[%emt 0:00:08]} 2. Nf3 {[%emt 0:00:02]} d6 {[%emt 0:
00:03]} 3. e3 {[%emt 0:00:01]} Nc6 {[%emt 0:00:10]} 4. Bb5 {[%emt 0:00:03]} Bd7
{[%emt 0:00:06]} 5. b3 {[%emt 0:00:15]} a6 {[%emt 0:00:02]} 6. Bxc6 {[%emt 0:
00:01]} Bxc6 {[%emt 0:00:01]} 7. O-O {[%emt 0:00:26]} Nf6 {[%emt 0:00:45]} 8.
d3 {[%emt 0:00:14]} g6 {[%emt 0:00:05]} 9. Bb2 {[%emt 0:00:02]} Bg7 {[%emt 0:
00:00]} 10. Nbd2 {[%emt 0:00:26]} O-O {[%emt 0:00:18]} 11. Qe1 {[%emt 0:00:08]}
e6 {[%emt 0:00:27]} 12. c4 {[%emt 0:00:42]} b5 {[%emt 0:00:22]} 13. h3 {[%emt
0:01:10]} bxc4 {[%emt 0:00:13]} 14. Nxc4 {[%emt 0:01:08]} a5 {[%emt 0:01:15]}
15. Qd2 {[%emt 0:01:49]} Qc7 {[%emt 0:02:39]} 16. Rfc1 {[%emt 0:00:38]} Rfb8 {
[%emt 0:01:12]} 17. Qc2 {[%emt 0:00:43]} a4 {[%emt 0:00:44]} 18. Kh1 {[%emt 0:
01:02]} h6 {[%emt 0:01:06]} 19. Kg1 {[%emt 0:00:17]} Rb7 {[%emt 0:00:39]} 20.
d4 {[%emt 0:00:12]} axb3 {[%emt 0:00:23]} 21. axb3 {[%emt 0:00:02]} Rxa1 {
[%emt 0:00:02]} 22. Rxa1 {[%emt 0:00:00]} cxd4 {[%emt 0:00:15]} 23. Nxd4 {
[%emt 0:00:07]} Be4 {[%emt 0:00:01]} 24. Qc3 {[%emt 0:00:40]} Nd5 {[%emt 0:00:
02]} 25. Qd2 {[%emt 0:00:02]} Nb4 {[%emt 0:00:16]} 26. Nf3 {[%emt 0:00:22]}
Bxb2 {[%emt 0:00:11]} 27. Qxb2 {[%emt 0:00:10]} Bxf3 {[%emt 0:00:09]} 28. gxf3
{[%emt 0:00:00]} Nd3 {[%emt 0:00:12]} 29. Qd4 {[%emt 0:00:10]} Qd8 {[%emt 0:00:
43]} 1/2-1/2

[Event "Dvaro taure"]
[Site "Taujenai, Lithuania"]
[Date "2021.11.28"]
[Round "6.14"]
[White "Zaura, Vidmantas"]
[Black "Jonaitis, Herkus"]
[Result "1-0"]
[WhiteElo "1971"]
[BlackElo "1277"]
[PlyCount "65"]
[EventDate "2021.??.??"]
[TimeControl "10+5"]
[WhiteClock "0:03:43"]
[BlackClock "0:06:34"]

1. Nf3 {[%emt 0:19:45]} d5 {[%emt 0:00:26]} 2. c4 {[%emt 0:00:03]} e6 {[%emt 0:
00:03]} 3. b3 {[%emt 0:00:02]} Nf6 {[%emt 0:00:05]} 4. Bb2 {[%emt 0:00:02]} c6
{[%emt 0:00:10]} 5. g3 {[%emt 0:00:03]} Nbd7 {[%emt 0:00:08]} 6. Bg2 {[%emt 0:
00:02]} Bc5 {[%emt 0:00:13]} 7. O-O {[%emt 0:00:05]} dxc4 {[%emt 0:00:15]} 8.
bxc4 {[%emt 0:00:03]} Qb6 {[%emt 0:00:02]} 9. Qc2 {[%emt 0:00:17]} Be7 {[%emt
0:00:54]} 10. Nc3 {[%emt 0:00:06]} O-O {[%emt 0:00:20]} 11. Rab1 {[%emt 0:00:
11]} Qc7 {[%emt 0:00:02]} 12. d3 {[%emt 0:00:17]} b6 {[%emt 0:00:20]} 13. e4 {
[%emt 0:01:12]} Nc5 {[%emt 0:00:27]} 14. d4 {[%emt 0:00:23]} Nb7 {[%emt 0:00:
16]} 15. e5 {[%emt 0:00:05]} Nd7 {[%emt 0:00:09]} 16. Ne4 {[%emt 0:00:06]} c5 {
[%emt 0:00:04]} 17. d5 {[%emt 0:00:06]} exd5 {[%emt 0:00:14]} 18. cxd5 {[%emt
0:00:03]} Bd8 {[%emt 0:00:13]} 19. d6 {[%emt 0:00:16]} Qc6 {[%emt 0:00:07]} 20.
Nfg5 {[%emt 0:00:19]} Qb5 {[%emt 0:00:17]} 21. Nxh7 {[%emt 0:02:01]} Re8 {
[%emt 0:00:18]} 22. Neg5 {[%emt 0:01:34]} g6 {[%emt 0:00:34]} 23. Bd5 {[%emt 0:
00:16]} Nxe5 {[%emt 0:00:21]} 24. Bxe5 {[%emt 0:00:07]} Qd7 {[%emt 0:00:02]}
25. Bxf7+ {[%emt 0:00:07]} Qxf7 {[%emt 0:00:02]} 26. Nxf7 {[%emt 0:00:02]} Kxh7
{[%emt 0:00:06]} 27. Qd2 {[%emt 0:00:33]} Rxe5 {[%emt 0:00:17]} 28. Qh6+ {
[%emt 0:00:05]} Kg8 {[%emt 0:00:02]} 29. Qxg6+ {[%emt 0:00:06]} Kf8 {[%emt 0:
00:03]} 30. Nxe5 {[%emt 0:00:05]} Nxd6 {[%emt 0:00:02]} 31. Qxd6+ {[%emt 0:00:
11]} Be7 {[%emt 0:00:02]} 32. Qg6 {[%emt 0:00:05]} Bd6 {[%emt 0:00:04]} 33.
Qf7# {[%emt 0:00:02]} 1-0

[Event "Dvaro taure"]
[Site "Taujenai, Lithuania"]
[Date "2021.11.28"]
[Round "6.15"]
[White "Gerasimovic, Stanislav"]
[Black "Mulevicius, Andrius"]
[Result "1/2-1/2"]
[WhiteElo "1790"]
[BlackElo "1698"]
[PlyCount "98"]
[EventDate "2021.??.??"]
[TimeControl "10+5"]
[WhiteClock "0:02:26"]
[BlackClock "0:00:13"]

1. e4 {[%emt 0:15:01]} d6 {[%emt 0:01:13]} 2. d4 {[%emt 0:00:03]} c6 {[%emt 0:
00:03]} 3. Nc3 {[%emt 0:00:03]} Qc7 {[%emt 0:00:04]} 4. f4 {[%emt 0:00:02]} g6
{[%emt 0:00:33]} 5. Nf3 {[%emt 0:00:02]} Bg4 {[%emt 0:00:02]} 6. Be2 {[%emt 0:
00:02]} Bg7 {[%emt 0:00:02]} 7. O-O {[%emt 0:00:03]} e6 {[%emt 0:00:11]} 8. h3
{[%emt 0:00:02]} Bxf3 {[%emt 0:00:02]} 9. Bxf3 {[%emt 0:00:03]} Ne7 {[%emt 0:
00:03]} 10. Be3 {[%emt 0:00:10]} O-O {[%emt 0:00:15]} 11. Qd2 {[%emt 0:00:04]}
Re8 {[%emt 0:00:17]} 12. Rab1 {[%emt 0:00:15]} Nd7 {[%emt 0:00:30]} 13. b4 {
[%emt 0:00:14]} a6 {[%emt 0:00:08]} 14. a4 {[%emt 0:00:02]} Rac8 {[%emt 0:00:
27]} 15. Qd3 {[%emt 0:01:29]} c5 {[%emt 0:00:35]} 16. dxc5 {[%emt 0:00:17]}
dxc5 {[%emt 0:00:02]} 17. b5 {[%emt 0:00:05]} c4 {[%emt 0:00:18]} 18. Qd2 {
[%emt 0:00:04]} Red8 {[%emt 0:00:29]} 19. Qe1 {[%emt 0:00:05]} Nc5 {[%emt 0:00:
24]} 20. e5 {[%emt 0:00:06]} Nf5 {[%emt 0:00:20]} 21. Bf2 {[%emt 0:00:02]} Nd4
{[%emt 0:00:12]} 22. Bxd4 {[%emt 0:00:10]} Rxd4 {[%emt 0:00:02]} 23. Ne4 {
[%emt 0:00:13]} Nxe4 {[%emt 0:00:18]} 24. Bxe4 {[%emt 0:00:06]} Qc5 {[%emt 0:
00:14]} 25. Kh2 {[%emt 0:00:03]} Rc7 {[%emt 0:00:49]} 26. bxa6 {[%emt 0:00:38]}
bxa6 {[%emt 0:00:02]} 27. c3 {[%emt 0:00:19]} Rd8 {[%emt 0:00:28]} 28. Qf2 {
[%emt 0:00:14]} Bf8 {[%emt 0:00:50]} 29. Qh4 {[%emt 0:00:52]} Be7 {[%emt 0:00:
22]} 30. Qe1 {[%emt 0:00:31]} Qa5 {[%emt 0:00:00]} 31. Bc2 {[%emt 0:00:40]}
Rcd7 {[%emt 0:00:34]} 32. Rf2 {[%emt 0:00:51]} Bc5 {[%emt 0:00:50]} 33. Re2 {
[%emt 0:00:03]} Be7 {[%emt 0:00:47]} 34. Rd1 {[%emt 0:00:49]} Rxd1 {[%emt 0:00:
29]} 35. Bxd1 {[%emt 0:00:02]} Qd5 {[%emt 0:00:13]} 36. Bc2 {[%emt 0:00:08]}
Qc5 {[%emt 0:00:33]} 37. Rd2 {[%emt 0:00:08]} Rxd2 {[%emt 0:00:15]} 38. Qxd2 {
[%emt 0:00:02]} Qd5 {[%emt 0:00:03]} 39. Qe2 {[%emt 0:00:18]} Ba3 {[%emt 0:00:
04]} 40. Be4 {[%emt 0:00:05]} Qc5 {[%emt 0:00:03]} 41. Qd2 {[%emt 0:00:06]} Kg7
{[%emt 0:00:05]} 42. Qd8 {[%emt 0:00:09]} Qe3 {[%emt 0:00:15]} 43. Qf6+ {[%emt
0:00:10]} Kg8 {[%emt 0:00:06]} 44. Bc6 {[%emt 0:01:00]} Bc5 {[%emt 0:00:10]}
45. Be8 {[%emt 0:00:29]} Qg1+ {[%emt 0:00:04]} 46. Kg3 {[%emt 0:00:03]} Qf2+ {
[%emt 0:00:07]} 47. Kh2 {[%emt 0:00:03]} Qg1+ {[%emt 0:00:06]} 48. Kg3 {[%emt
0:00:04]} Qf2+ {[%emt 0:00:05]} 49. Kh2 {[%emt 0:00:06]} Qg1+ {[%emt 0:00:03]}
1/2-1/2

[Event "Dvaro taure"]
[Site "Taujenai, Lithuania"]
[Date "2021.11.28"]
[Round "6.16"]
[White "Ratkevicius, Andrius"]
[Black "Satkauskas, Benediktas"]
[Result "1-0"]
[WhiteElo "1394"]
[BlackElo "1392"]
[PlyCount "71"]
[EventDate "2021.??.??"]
[TimeControl "10+5"]
[WhiteClock "0:06:17"]
[BlackClock "0:01:05"]

1. d4 {[%emt 0:13:31]} d5 {[%emt 0:00:01]} 2. c4 {[%emt 0:00:00]} c6 {[%emt 0:
00:03]} 3. Nf3 {[%emt 0:00:01]} Nf6 {[%emt 0:00:01]} 4. Nc3 {[%emt 0:00:02]} e6
{[%emt 0:00:03]} 5. Bf4 {[%emt 0:00:01]} Be7 {[%emt 0:00:05]} 6. e3 {[%emt 0:
00:00]} O-O {[%emt 0:00:04]} 7. cxd5 {[%emt 0:00:02]} exd5 {[%emt 0:00:09]} 8.
Bd3 {[%emt 0:00:06]} Bg4 {[%emt 0:00:02]} 9. O-O {[%emt 0:00:05]} Nbd7 {[%emt
0:00:06]} 10. h3 {[%emt 0:00:02]} Bh5 {[%emt 0:00:01]} 11. Be2 {[%emt 0:00:16]}
Bg6 {[%emt 0:00:09]} 12. Nh4 {[%emt 0:00:18]} Rc8 {[%emt 0:00:33]} 13. Nxg6 {
[%emt 0:00:05]} hxg6 {[%emt 0:00:02]} 14. Bf3 {[%emt 0:00:44]} Qb6 {[%emt 0:00:
29]} 15. Rb1 {[%emt 0:00:09]} a6 {[%emt 0:01:21]} 16. Qe2 {[%emt 0:00:02]} Rfe8
{[%emt 0:00:08]} 17. Rfc1 {[%emt 0:00:30]} Qa7 {[%emt 0:00:19]} 18. b3 {[%emt
0:00:02]} Ba3 {[%emt 0:00:12]} 19. Rc2 {[%emt 0:00:07]} Bb4 {[%emt 0:00:25]}
20. Na4 {[%emt 0:00:04]} b5 {[%emt 0:00:35]} 21. Nb2 {[%emt 0:00:02]} c5 {
[%emt 0:00:22]} 22. Nd3 {[%emt 0:00:23]} Ba3 {[%emt 0:00:24]} 23. dxc5 {[%emt
0:00:18]} Nxc5 {[%emt 0:00:15]} 24. Nxc5 {[%emt 0:00:06]} Rxc5 {[%emt 0:01:44]}
25. Rxc5 {[%emt 0:00:02]} Qxc5 {[%emt 0:00:21]} 26. Qd3 {[%emt 0:01:06]} Rc8 {
[%emt 0:00:29]} 27. Rd1 {[%emt 0:00:16]} Rd8 {[%emt 0:00:28]} 28. Be5 {[%emt 0:
00:11]} Qe7 {[%emt 0:01:34]} 29. Bxf6 {[%emt 0:00:16]} Qxf6 {[%emt 0:00:03]}
30. Bxd5 {[%emt 0:00:34]} Qe5 {[%emt 0:00:11]} 31. Bxf7+ {[%emt 0:00:16]} Kxf7
{[%emt 0:00:08]} 32. Qxd8 {[%emt 0:00:02]} Be7 {[%emt 0:00:42]} 33. Qd5+ {
[%emt 0:00:16]} Qxd5 {[%emt 0:00:04]} 34. Rxd5 {[%emt 0:00:00]} Ke6 {[%emt 0:
00:01]} 35. e4 {[%emt 0:00:14]} Bd8 {[%emt 0:00:31]} 36. Rxd8 {[%emt 0:00:02]}
1-0

[Event "Dvaro taure"]
[Site "Taujenai, Lithuania"]
[Date "2021.11.28"]
[Round "6.17"]
[White "Paliulis, Aivaras"]
[Black "Griksaite, Ieva"]
[Result "0-1"]
[WhiteElo "1714"]
[BlackElo "1518"]
[PlyCount "38"]
[EventDate "2021.??.??"]
[TimeControl "10+5"]
[WhiteClock "0:10:30"]
[BlackClock "0:08:58"]

1. e4 {[%emt 0:00:00]} c5 {[%emt 0:00:02]} 2. Nc3 {[%emt 0:00:00]} Nc6 {[%emt
0:00:01]} 3. g3 {[%emt 0:00:01]} g6 {[%emt 0:00:00]} 4. Bg2 {[%emt 0:00:01]}
Bg7 {[%emt 0:00:00]} 5. d3 {[%emt 0:00:02]} d6 {[%emt 0:00:05]} 6. Be3 {[%emt
0:00:01]} Nf6 {[%emt 0:00:05]} 7. f3 {[%emt 0:00:00]} O-O {[%emt 0:00:03]} 8.
Qd2 {[%emt 0:00:02]} Rb8 {[%emt 0:00:01]} 9. Bh6 {[%emt 0:00:01]} b5 {[%emt 0:
00:02]} 10. h4 {[%emt 0:00:01]} Nd4 {[%emt 0:00:02]} 11. Nd1 {[%emt 0:00:09]}
Bxh6 {[%emt 0:00:14]} 12. Qxh6 {[%emt 0:00:00]} Nxc2+ {[%emt 0:00:02]} 13. Kd2
Nxa1 {[%emt 0:00:03]} 14. g4 {[%emt 0:00:02]} Qa5+ {[%emt 0:01:19]} 15. Nc3 {
[%emt 0:00:16]} b4 {[%emt 0:00:17]} 16. Nd5 {[%emt 0:00:04]} b3+ {[%emt 0:00:
08]} 17. Ke3 {[%emt 0:00:27]} Nxd5+ {[%emt 0:00:08]} 18. exd5 {[%emt 0:00:01]}
Qe1+ {[%emt 0:00:02]} 19. Kf4 {[%emt 0:00:03]} Qe5# {[%emt 0:00:02]} 0-1

[Event "Dvaro taure"]
[Site "Taujenai, Lithuania"]
[Date "2021.11.28"]
[Round "6.18"]
[White "Jasas, Ignas"]
[Black "Muralis, Aloyzas"]
[Result "0-1"]
[WhiteElo "1216"]
[BlackElo "1748"]
[PlyCount "58"]
[EventDate "2021.??.??"]
[TimeControl "10+5"]
[WhiteClock "0:00:14"]
[BlackClock "0:02:56"]

1. e4 {[%emt 0:00:01]} e5 {[%emt 0:00:02]} 2. Nf3 {[%emt 0:00:02]} Nc6 {[%emt
0:00:02]} 3. Bb5 {[%emt 0:00:02]} Bc5 {[%emt 0:00:02]} 4. O-O {[%emt 0:00:05]}
Qf6 {[%emt 0:00:02]} 5. Nc3 {[%emt 0:00:09]} Nge7 {[%emt 0:00:02]} 6. Bxc6 {
[%emt 0:00:23]} dxc6 {[%emt 0:00:03]} 7. d4 {[%emt 0:00:04]} exd4 {[%emt 0:00:
11]} 8. Bg5 {[%emt 0:00:08]} Qg6 {[%emt 0:01:05]} 9. Na4 {[%emt 0:00:39]} Bb6 {
[%emt 0:00:35]} 10. Bxe7 {[%emt 0:00:13]} Kxe7 {[%emt 0:00:00]} 11. Nxb6 {
[%emt 0:00:05]} cxb6 {[%emt 0:00:09]} 12. Qxd4 {[%emt 0:00:29]} Re8 {[%emt 0:
00:18]} 13. Rad1 {[%emt 0:00:11]} Kf8 {[%emt 0:00:16]} 14. Rfe1 {[%emt 0:00:37]
} Kg8 {[%emt 0:00:32]} 15. Kf1 {[%emt 0:00:39]} h6 {[%emt 0:00:14]} 16. e5 {
[%emt 0:00:56]} Qxc2 {[%emt 0:00:36]} 17. Re2 {[%emt 0:01:36]} Qg6 {[%emt 0:00:
28]} 18. Qf4 {[%emt 0:01:39]} Be6 {[%emt 0:00:36]} 19. Red2 {[%emt 0:00:44]}
Bd5 {[%emt 0:01:06]} 20. Nh4 {[%emt 0:01:23]} Qg5 {[%emt 0:00:53]} 21. Qxg5 {
[%emt 0:00:35]} hxg5 {[%emt 0:00:02]} 22. Nf5 {[%emt 0:00:23]} Rxe5 {[%emt 0:
00:13]} 23. Ne3 {[%emt 0:00:02]} Rd8 {[%emt 0:00:15]} 24. Ng4 {[%emt 0:00:19]}
Re6 {[%emt 0:00:17]} 25. Ne3 {[%emt 0:00:04]} Red6 {[%emt 0:00:08]} 26. Ke1 {
[%emt 0:00:16]} b5 {[%emt 0:00:32]} 27. Ke2 {[%emt 0:00:20]} a5 {[%emt 0:00:09]
} 28. a3 {[%emt 0:00:05]} g6 {[%emt 0:00:13]} 29. g4 {[%emt 0:00:15]} Bf3+ {
[%emt 0:00:25]} 0-1

[Event "Dvaro taure"]
[Site "Taujenai, Lithuania"]
[Date "2021.11.28"]
[Round "6.19"]
[White "Kurmis, Edvinas"]
[Black "Zalimas, Ugnius"]
[Result "1-0"]
[WhiteElo "1665"]
[BlackElo "1392"]
[PlyCount "85"]
[EventDate "2021.??.??"]
[TimeControl "10+5"]
[WhiteClock "0:00:42"]
[BlackClock "0:00:47"]

1. e4 {[%emt 0:00:28]} c5 {[%emt 0:00:03]} 2. Nf3 {[%emt 0:00:02]} d6 {[%emt 0:
00:00]} 3. d4 {[%emt 0:00:02]} cxd4 {[%emt 0:00:00]} 4. Nxd4 {[%emt 0:00:00]}
Nf6 {[%emt 0:00:01]} 5. Nc3 {[%emt 0:00:03]} g6 {[%emt 0:00:01]} 6. Be3 {[%emt
0:00:04]} Bg7 {[%emt 0:00:02]} 7. Qd2 {[%emt 0:00:20]} O-O {[%emt 0:00:03]} 8.
Bh6 {[%emt 0:00:07]} Nc6 {[%emt 0:00:03]} 9. Bxg7 {[%emt 0:00:08]} Kxg7 {[%emt
0:00:02]} 10. Nb3 {[%emt 0:00:03]} Bd7 {[%emt 0:00:02]} 11. Bd3 {[%emt 0:00:02]
} Rc8 {[%emt 0:00:02]} 12. a3 {[%emt 0:00:03]} Ne5 {[%emt 0:00:05]} 13. O-O {
[%emt 0:00:11]} Nxd3 {[%emt 0:00:47]} 14. cxd3 {[%emt 0:00:01]} a6 {[%emt 0:00:
01]} 15. Kh1 {[%emt 0:00:06]} Bc6 {[%emt 0:00:01]} 16. Nd4 {[%emt 0:00:14]} Qd7
{[%emt 0:00:06]} 17. f4 {[%emt 0:00:06]} e5 {[%emt 0:00:18]} 18. Nde2 {[%emt 0:
00:24]} exf4 {[%emt 0:00:16]} 19. Nxf4 {[%emt 0:00:23]} Rfe8 {[%emt 0:01:12]}
20. Rae1 {[%emt 0:00:03]} Ng4 {[%emt 0:00:44]} 21. h3 {[%emt 0:00:22]} Ne5 {
[%emt 0:00:02]} 22. Re3 {[%emt 0:01:08]} Qe7 {[%emt 0:02:09]} 23. Rg3 {[%emt 0:
00:26]} Qh4 {[%emt 0:00:07]} 24. Kh2 {[%emt 0:00:12]} Qh6 {[%emt 0:00:42]} 25.
Qe2 {[%emt 0:00:53]} Rcd8 {[%emt 0:00:32]} 26. a4 {[%emt 0:03:31]} b5 {[%emt 0:
00:56]} 27. b3 {[%emt 0:00:12]} bxa4 {[%emt 0:00:09]} 28. bxa4 {[%emt 0:00:01]}
Rc8 {[%emt 0:00:00]} 29. d4 {[%emt 0:00:39]} Nd7 {[%emt 0:00:23]} 30. d5 {
[%emt 0:00:05]} Bb7 {[%emt 0:00:25]} 31. Qb2 {[%emt 0:00:15]} Nc5 {[%emt 0:00:
01]} 32. Nb5+ {[%emt 0:00:10]} Kf8 {[%emt 0:00:30]} 33. Nxd6 {[%emt 0:00:03]}
Nxe4 {[%emt 0:02:00]} 34. Nxe4 {[%emt 0:01:23]} Bxd5 {[%emt 0:00:11]} 35. Qh8+
{[%emt 0:00:17]} Ke7 {[%emt 0:00:12]} 36. Nxd5+ {[%emt 0:00:01]} Ke6 {[%emt 0:
00:03]} 37. Qd4 {[%emt 0:00:15]} Rcd8 {[%emt 0:00:08]} 38. Nc7+ {[%emt 0:00:01]
} Ke7 {[%emt 0:00:14]} 39. Qc5+ {[%emt 0:00:03]} Kd7 {[%emt 0:00:11]} 40. Rd3+
{[%emt 0:00:01]} Kc8 {[%emt 0:00:06]} 41. Nxe8+ {[%emt 0:00:02]} Kb7 {[%emt 0:
00:13]} 42. Qc7+ {[%emt 0:00:01]} Ka8 {[%emt 0:00:03]} 43. Rxd8# {[%emt 0:00:
02]} 1-0